[Event "Late-Titled-Tuesday-Blitz-December-26-2023"]
[Site "Chess.com"]
[Date "2023.12.26"]
[Round "9"]
[White "IngOscarArdila"]
[Black "BeardedNM"]
[Result "1-0"]
[WhiteElo "2320"]
[BlackElo "2175"]
[TimeControl "180+1"]
[EndTime "15:43:15 PST"]
[Termination "IngOscarArdila won on time"]

1. d4 {[%clk 0:02:59.6]} 1... e6 {[%clk 0:02:09.5]} 2. c4 {[%clk 0:02:59.2]}
2... Nf6 {[%clk 0:02:08.3]} 3. Nc3 {[%clk 0:02:58.6]} 3... d5 {[%clk 0:02:08.9]}
4. Bg5 {[%clk 0:02:58.2]} 4... dxc4 {[%clk 0:02:08.5]} 5. e3 {[%clk 0:02:58]}
5... c5 {[%clk 0:02:06.9]} 6. Nf3 {[%clk 0:02:57.4]} 6... Nc6 {[%clk 0:02:06.8]}
7. dxc5 {[%clk 0:02:56.1]} 7... Qa5 {[%clk 0:01:59.9]} 8. Bxf6 {[%clk
0:02:54.4]} 8... gxf6 {[%clk 0:02:00.8]} 9. Bxc4 {[%clk 0:02:53.9]} 9... Qxc5
{[%clk 0:01:55.8]} 10. Qe2 {[%clk 0:02:53.8]} 10... Bd7 {[%clk 0:01:46.1]} 11.
O-O {[%clk 0:02:53.3]} 11... Rc8 {[%clk 0:01:45.7]} 12. Rac1 {[%clk 0:02:49]}
12... Qh5 {[%clk 0:01:44.8]} 13. Nb5 {[%clk 0:02:41.8]} 13... Rg8 {[%clk
0:01:16.6]} 14. Rfd1 {[%clk 0:02:39.9]} 14... Ne5 {[%clk 0:01:00.4]} 15. Nxe5
{[%clk 0:02:30.5]} 15... Qxe5 {[%clk 0:00:59.9]} 16. Nd4 {[%clk 0:01:45.1]}
16... Bd6 {[%clk 0:00:52.2]} 17. f4 {[%clk 0:01:45.1]} 17... Qe4 {[%clk
0:00:37.1]} 18. Bd3 {[%clk 0:01:42.5]} 18... Qd5 {[%clk 0:00:26.7]} 19. Rxc8+
{[%clk 0:01:40.6]} 19... Bxc8 {[%clk 0:00:27.6]} 20. Bxh7 {[%clk 0:01:34.8]}
20... Rg7 {[%clk 0:00:20.6]} 21. Nf5 {[%clk 0:01:28.7]} 21... Rxg2+ {[%clk
0:00:15.9]} 22. Qxg2 {[%clk 0:01:27.6]} 22... Qxd1+ {[%clk 0:00:16.1]} 23. Kf2
{[%clk 0:01:17]} 23... Qd2+ {[%clk 0:00:15.9]} 24. Kf3 {[%clk 0:01:11.1]} 24...
Qxg2+ {[%clk 0:00:16.8]} 25. Kxg2 {[%clk 0:01:11.2]} 25... exf5 {[%clk
0:00:16.8]} 26. Kf3 {[%clk 0:01:09.6]} 26... Kf8 {[%clk 0:00:16.7]} 27. e4
{[%clk 0:01:10.1]} 27... fxe4+ {[%clk 0:00:16.3]} 28. Bxe4 {[%clk 0:01:09.9]}
28... b6 {[%clk 0:00:15.2]} 29. h4 {[%clk 0:01:08.9]} 29... f5 {[%clk
0:00:15.1]} 30. Bc6 {[%clk 0:01:07.9]} 30... Be6 {[%clk 0:00:14.9]} 31. a3
{[%clk 0:01:08]} 31... Bb3 {[%clk 0:00:13.9]} 32. Bb5 {[%clk 0:01:05.6]} 32...
Ke7 {[%clk 0:00:12.5]} 33. Kg3 {[%clk 0:01:02.6]} 33... Kf6 {[%clk 0:00:11.7]}
34. Be2 {[%clk 0:01:00.5]} 34... Bd5 {[%clk 0:00:10.9]} 35. Bd1 {[%clk
0:00:59.1]} 35... Bc5 {[%clk 0:00:09.4]} 36. Bc2 {[%clk 0:00:56.1]} 36... Bd4
{[%clk 0:00:09.2]} 37. b3 {[%clk 0:00:55.3]} 37... b5 {[%clk 0:00:07.7]} 38. a4
{[%clk 0:00:54.4]} 38... b4 {[%clk 0:00:07.7]} 39. Bd1 {[%clk 0:00:54.2]} 39...
a5 {[%clk 0:00:06.1]} 40. Bc2 {[%clk 0:00:54.4]} 40... Bc3 {[%clk 0:00:05.8]}
41. Bd1 {[%clk 0:00:54.4]} 41... Be1+ {[%clk 0:00:05.6]} 42. Kh3 {[%clk
0:00:54.3]} 42... Be4 {[%clk 0:00:05.4]} 43. Be2 {[%clk 0:00:52.2]} 43... Ke6
{[%clk 0:00:05.5]} 44. Bc4+ {[%clk 0:00:51.8]} 44... Bd5 {[%clk 0:00:04.4]} 45.
Bd3 {[%clk 0:00:48.1]} 45... Bxb3 {[%clk 0:00:02.8]} 46. h5 {[%clk 0:00:49]}
46... Bc3 {[%clk 0:00:02.3]} 47. h6 {[%clk 0:00:48.7]} 47... Bxa4 {[%clk
0:00:01.2]} 48. Kg3 {[%clk 0:00:48.9]} 1-0

[Event "Late-Titled-Tuesday-Blitz-December-26-2023"]
[Site "Chess.com"]
[Date "2023.12.26"]
[Round "9"]
[White "Sanyura"]
[Black "Marcin"]
[Result "0-1"]
[WhiteElo "2604"]
[BlackElo "2495"]
[TimeControl "180+1"]
[EndTime "15:43:25 PST"]
[Termination "Marcin won on time"]

1. e4 {[%clk 0:03:00.9]} 1... c5 {[%clk 0:02:48.9]} 2. Nf3 {[%clk 0:03:01]} 2...
e6 {[%clk 0:02:47.1]} 3. d4 {[%clk 0:03:01.1]} 3... cxd4 {[%clk 0:02:48]} 4.
Nxd4 {[%clk 0:03:01.6]} 4... a6 {[%clk 0:02:45.7]} 5. Bd3 {[%clk 0:03:01.2]}
5... Nf6 {[%clk 0:02:45.2]} 6. O-O {[%clk 0:03:00.5]} 6... Qc7 {[%clk
0:02:45.4]} 7. Qe2 {[%clk 0:03:01]} 7... d6 {[%clk 0:02:44.9]} 8. c4 {[%clk
0:03:01.3]} 8... Nbd7 {[%clk 0:02:44.2]} 9. Nc3 {[%clk 0:03:01.8]} 9... g6
{[%clk 0:02:44.7]} 10. b3 {[%clk 0:03:02.3]} 10... Bg7 {[%clk 0:02:45]} 11. Bb2
{[%clk 0:03:03]} 11... O-O {[%clk 0:02:45.7]} 12. Rad1 {[%clk 0:03:02.1]} 12...
b6 {[%clk 0:02:42.8]} 13. Bb1 {[%clk 0:03:02]} 13... Bb7 {[%clk 0:02:43.3]} 14.
Nf3 {[%clk 0:02:58.2]} 14... Rad8 {[%clk 0:02:36.3]} 15. Rd2 {[%clk 0:02:57.8]}
15... Rfe8 {[%clk 0:02:32.9]} 16. Rfd1 {[%clk 0:02:57.7]} 16... d5 {[%clk
0:02:32.5]} 17. e5 {[%clk 0:01:51.4]} 17... Ng4 {[%clk 0:02:15.1]} 18. cxd5
{[%clk 0:01:40.9]} 18... Ndxe5 {[%clk 0:02:10.3]} 19. d6 {[%clk 0:01:38.9]}
19... Nxf3+ {[%clk 0:01:25]} 20. Qxf3 {[%clk 0:01:38.1]} 20... Rxd6 {[%clk
0:01:24.8]} 21. Qxg4 {[%clk 0:01:03.5]} 21... Rxd2 {[%clk 0:01:19.5]} 22. Rxd2
{[%clk 0:01:03.2]} 22... Bxc3 {[%clk 0:01:19.3]} 23. Rc2 {[%clk 0:00:44.4]}
23... h5 {[%clk 0:01:15.4]} 24. Qe2 {[%clk 0:00:13.1]} 24... Rd8 {[%clk
0:00:18.8]} 25. Bxc3 {[%clk 0:00:10.2]} 25... Qc6 {[%clk 0:00:16.8]} 26. f3
{[%clk 0:00:09.5]} 26... Qc5+ {[%clk 0:00:16.9]} 27. Kf1 {[%clk 0:00:09]} 27...
a5 {[%clk 0:00:12.6]} 28. Bb2 {[%clk 0:00:06.1]} 28... Qg5 {[%clk 0:00:08]} 29.
Rc1 {[%clk 0:00:03.5]} 29... Rd2 {[%clk 0:00:06.1]} 30. h4 {[%clk 0:00:03.2]}
30... Rxe2 {[%clk 0:00:05.6]} 31. hxg5 {[%clk 0:00:03.6]} 31... Rxb2 {[%clk
0:00:06.3]} 32. Kg1 {[%clk 0:00:02]} 32... Bd5 {[%clk 0:00:05]} 0-1

[Event "Late-Titled-Tuesday-Blitz-December-26-2023"]
[Site "Chess.com"]
[Date "2023.12.26"]
[Round "9"]
[White "youngdinousaur"]
[Black "hangemhigh"]
[Result "0-1"]
[WhiteElo "2304"]
[BlackElo "2472"]
[TimeControl "180+1"]
[EndTime "15:43:29 PST"]
[Termination "hangemhigh won on time"]

1. d4 {[%clk 0:03:00.9]} 1... d6 {[%clk 0:03:00.9]} 2. e4 {[%clk 0:03:00.3]}
2... Nf6 {[%clk 0:03:00.1]} 3. Nc3 {[%clk 0:02:59.9]} 3... Nbd7 {[%clk
0:02:59.3]} 4. Nf3 {[%clk 0:02:57]} 4... e5 {[%clk 0:02:58.6]} 5. Bc4 {[%clk
0:02:56.1]} 5... Be7 {[%clk 0:02:57.6]} 6. O-O {[%clk 0:02:55]} 6... O-O {[%clk
0:02:56.8]} 7. h3 {[%clk 0:02:54.5]} 7... a6 {[%clk 0:02:56.5]} 8. a4 {[%clk
0:02:53.9]} 8... b6 {[%clk 0:02:56.4]} 9. Qe2 {[%clk 0:02:46.7]} 9... Bb7 {[%clk
0:02:54.9]} 10. Rd1 {[%clk 0:02:42.3]} 10... exd4 {[%clk 0:02:53.7]} 11. Nxd4
{[%clk 0:02:42.4]} 11... Re8 {[%clk 0:02:52.5]} 12. Nf5 {[%clk 0:02:34.4]} 12...
Bf8 {[%clk 0:02:49.1]} 13. Bd3 {[%clk 0:02:18.5]} 13... d5 {[%clk 0:02:21.6]}
14. Bg5 {[%clk 0:02:03]} 14... Qc8 {[%clk 0:01:51.3]} 15. f3 {[%clk 0:01:41.4]}
15... dxe4 {[%clk 0:01:45.1]} 16. fxe4 {[%clk 0:01:40]} 16... Nxe4 {[%clk
0:01:28.5]} 17. Nxe4 {[%clk 0:01:31.4]} 17... Bxe4 {[%clk 0:01:11.1]} 18. Bxe4
{[%clk 0:01:29.6]} 18... Nc5 {[%clk 0:01:11.6]} 19. Ng3 {[%clk 0:01:21]} 19...
Nxe4 {[%clk 0:01:06]} 20. Nxe4 {[%clk 0:01:17.4]} 20... Qf5 {[%clk 0:01:04.5]}
21. Qf3 {[%clk 0:00:30.3]} 21... Qxe4 {[%clk 0:01:00.2]} 22. Qxe4 {[%clk
0:00:30.6]} 22... Rxe4 {[%clk 0:01:01.1]} 23. Rd7 {[%clk 0:00:31]} 23... f6
{[%clk 0:00:52.5]} 24. Bd2 {[%clk 0:00:22.4]} 24... Bc5+ {[%clk 0:00:49.3]} 25.
Kh2 {[%clk 0:00:21]} 25... Re2 {[%clk 0:00:47.4]} 26. Re1 {[%clk 0:00:15.3]}
26... Rae8 {[%clk 0:00:42.8]} 27. Rxe2 {[%clk 0:00:14.5]} 27... Rxe2 {[%clk
0:00:43.7]} 28. Bf4 {[%clk 0:00:14.5]} 28... Rxc2 {[%clk 0:00:40.2]} 29. b3
{[%clk 0:00:08.5]} 29... c6 {[%clk 0:00:35.2]} 30. Rc7 {[%clk 0:00:06.8]} 30...
Bd4 {[%clk 0:00:31.5]} 31. b4 {[%clk 0:00:04.5]} 31... h5 {[%clk 0:00:26]} 32.
b5 {[%clk 0:00:03.1]} 32... axb5 {[%clk 0:00:23.9]} 33. axb5 {[%clk 0:00:04]}
33... c5 {[%clk 0:00:24.1]} 34. Rc6 {[%clk 0:00:03.5]} 34... c4 {[%clk
0:00:23.6]} 35. Bc7 {[%clk 0:00:03.4]} 35... c3 {[%clk 0:00:18]} 36. Bxb6 {[%clk
0:00:03.1]} 36... Be5+ {[%clk 0:00:18.1]} 37. Kg1 {[%clk 0:00:02.5]} 37... Rb2
{[%clk 0:00:17.3]} 0-1

[Event "Late-Titled-Tuesday-Blitz-December-26-2023"]
[Site "Chess.com"]
[Date "2023.12.26"]
[Round "9"]
[White "monalize"]
[Black "Ajedrez_con_German"]
[Result "1-0"]
[WhiteElo "2528"]
[BlackElo "2571"]
[TimeControl "180+1"]
[EndTime "15:43:32 PST"]
[Termination "monalize won by resignation"]

1. e4 {[%clk 0:03:00.9]} 1... e6 {[%clk 0:02:51.5]} 2. d4 {[%clk 0:02:59.8]}
2... d5 {[%clk 0:02:51.7]} 3. Nd2 {[%clk 0:03:00.3]} 3... dxe4 {[%clk
0:02:50.3]} 4. Nxe4 {[%clk 0:02:59.7]} 4... Nd7 {[%clk 0:02:51]} 5. Bf4 {[%clk
0:02:47.5]} 5... Ngf6 {[%clk 0:02:50]} 6. Bd3 {[%clk 0:02:44.5]} 6... Nxe4
{[%clk 0:02:48.2]} 7. Bxe4 {[%clk 0:02:44.1]} 7... Nf6 {[%clk 0:02:49.1]} 8. Bf3
{[%clk 0:02:44.1]} 8... Bd6 {[%clk 0:02:48.9]} 9. Qd2 {[%clk 0:02:43.3]} 9...
Bxf4 {[%clk 0:02:48]} 10. Qxf4 {[%clk 0:02:42.3]} 10... Qd6 {[%clk 0:02:48.9]}
11. Qd2 {[%clk 0:02:39.5]} 11... O-O {[%clk 0:02:42.7]} 12. O-O-O {[%clk
0:02:38.2]} 12... c5 {[%clk 0:02:42.4]} 13. Ne2 {[%clk 0:02:36.4]} 13... Bd7
{[%clk 0:02:32.7]} 14. Qg5 {[%clk 0:02:30.7]} 14... h6 {[%clk 0:02:29.2]} 15.
Qxc5 {[%clk 0:02:29.7]} 15... Qxc5 {[%clk 0:02:24.5]} 16. dxc5 {[%clk
0:02:28.5]} 16... Rac8 {[%clk 0:02:24.5]} 17. Bxb7 {[%clk 0:02:27]} 17... Rxc5
{[%clk 0:02:24.6]} 18. Bf3 {[%clk 0:02:26.5]} 18... Rfc8 {[%clk 0:02:13.3]} 19.
c3 {[%clk 0:02:26.1]} 19... a5 {[%clk 0:02:11.8]} 20. Nf4 {[%clk 0:02:16.8]}
20... a4 {[%clk 0:02:07.8]} 21. a3 {[%clk 0:02:13.1]} 21... Bb5 {[%clk
0:02:03.1]} 22. Rhe1 {[%clk 0:02:09.5]} 22... g5 {[%clk 0:02:00.2]} 23. Nd3
{[%clk 0:02:08.7]} 23... Bxd3 {[%clk 0:02:00.1]} 24. Rxd3 {[%clk 0:02:08]} 24...
Rb8 {[%clk 0:02:00.7]} 25. Rd4 {[%clk 0:02:06.6]} 25... Ra5 {[%clk 0:01:53.2]}
26. Bd1 {[%clk 0:02:04.7]} 26... Rba8 {[%clk 0:01:47.2]} 27. h4 {[%clk
0:02:01.9]} 27... gxh4 {[%clk 0:01:46.6]} 28. Rxh4 {[%clk 0:02:01.2]} 28... Kg7
{[%clk 0:01:47.1]} 29. Re3 {[%clk 0:01:58.5]} 29... Nd5 {[%clk 0:01:35]} 30.
Rg3+ {[%clk 0:01:56.8]} 30... Kh7 {[%clk 0:01:34.1]} 31. Bc2+ {[%clk 0:01:51.8]}
31... f5 {[%clk 0:01:32.6]} 32. Rd3 {[%clk 0:01:44.8]} 32... Nf6 {[%clk
0:01:22.7]} 33. Rd6 {[%clk 0:01:39.7]} 33... R8a6 {[%clk 0:01:14.8]} 34. Rxa6
{[%clk 0:01:34.5]} 34... Rxa6 {[%clk 0:01:15]} 35. Rxa4 {[%clk 0:01:34.4]} 35...
Rc6 {[%clk 0:01:12.1]} 36. f3 {[%clk 0:01:33.3]} 36... h5 {[%clk 0:01:12.1]} 37.
Rd4 {[%clk 0:01:28.9]} 37... Kg6 {[%clk 0:01:07.7]} 38. Kd2 {[%clk 0:01:23.6]}
38... Kg5 {[%clk 0:01:03]} 39. a4 {[%clk 0:01:17.5]} 39... e5 {[%clk 0:01:00.1]}
40. Rd8 {[%clk 0:01:13]} 40... e4 {[%clk 0:01:00.3]} 41. fxe4 {[%clk 0:01:12.2]}
41... fxe4 {[%clk 0:00:59.6]} 42. Ke3 {[%clk 0:01:10.7]} 42... Re6 {[%clk
0:00:55.4]} 43. a5 {[%clk 0:01:07.9]} 43... Ng4+ {[%clk 0:00:55.2]} 44. Ke2
{[%clk 0:01:06.6]} 44... e3 {[%clk 0:00:55.8]} 45. Bd3 {[%clk 0:01:04.3]} 45...
Rf6 {[%clk 0:00:55.6]} 46. Rg8+ {[%clk 0:00:58.8]} 46... Kh4 {[%clk 0:00:55.6]}
47. a6 {[%clk 0:00:56.7]} 47... Rf2+ {[%clk 0:00:55.3]} 48. Ke1 {[%clk
0:00:56.4]} 48... Rxb2 {[%clk 0:00:43.2]} 49. a7 {[%clk 0:00:53]} 49... Nf2
{[%clk 0:00:43.2]} 50. Ba6 {[%clk 0:00:48.1]} 50... Rb1+ {[%clk 0:00:15.5]} 51.
Ke2 {[%clk 0:00:47.5]} 51... Nd1 {[%clk 0:00:12.7]} 52. a8=Q {[%clk 0:00:45.9]}
52... Rb2+ {[%clk 0:00:13.2]} 53. Ke1 {[%clk 0:00:44.8]} 1-0

[Event "Late-Titled-Tuesday-Blitz-December-26-2023"]
[Site "Chess.com"]
[Date "2023.12.26"]
[Round "9"]
[White "ahkashefi2800"]
[Black "kasparicy"]
[Result "1-0"]
[WhiteElo "2621"]
[BlackElo "2481"]
[TimeControl "180+1"]
[EndTime "15:43:34 PST"]
[Termination "ahkashefi2800 won by resignation"]

1. d4 {[%clk 0:03:00.6]} 1... Nf6 {[%clk 0:02:50.5]} 2. c4 {[%clk 0:03:00.7]}
2... g6 {[%clk 0:02:50.9]} 3. Nc3 {[%clk 0:03:01.1]} 3... d5 {[%clk 0:02:51.3]}
4. cxd5 {[%clk 0:02:57.9]} 4... Nxd5 {[%clk 0:02:52.2]} 5. Bd2 {[%clk
0:02:58.4]} 5... Bg7 {[%clk 0:02:38.6]} 6. e3 {[%clk 0:02:58.2]} 6... O-O {[%clk
0:02:37.8]} 7. Nf3 {[%clk 0:02:58.3]} 7... c5 {[%clk 0:02:37.8]} 8. Bc4 {[%clk
0:02:58.3]} 8... Nb6 {[%clk 0:02:34]} 9. Bb3 {[%clk 0:02:48.8]} 9... cxd4 {[%clk
0:02:30.3]} 10. exd4 {[%clk 0:02:49.2]} 10... Nc6 {[%clk 0:02:25.6]} 11. Be3
{[%clk 0:02:49]} 11... Na5 {[%clk 0:02:25]} 12. O-O {[%clk 0:02:41.9]} 12...
Nxb3 {[%clk 0:02:24]} 13. Qxb3 {[%clk 0:02:41.6]} 13... Be6 {[%clk 0:02:24]} 14.
Qb4 {[%clk 0:02:36.2]} 14... a5 {[%clk 0:02:14.4]} 15. Qc5 {[%clk 0:02:31.3]}
15... Nc4 {[%clk 0:02:03.2]} 16. d5 {[%clk 0:02:06.9]} 16... Rc8 {[%clk
0:02:03.1]} 17. Qb5 {[%clk 0:01:54.8]} 17... Bd7 {[%clk 0:01:18]} 18. Qxb7
{[%clk 0:01:50.6]} 18... Rb8 {[%clk 0:01:04]} 19. Qa6 {[%clk 0:01:50.4]} 19...
Nxe3 {[%clk 0:00:57.9]} 20. fxe3 {[%clk 0:01:46]} 20... Rxb2 {[%clk 0:00:58.4]}
21. Nd4 {[%clk 0:01:42.4]} 21... Qc7 {[%clk 0:00:43]} 22. Rac1 {[%clk
0:01:34.4]} 22... Qe5 {[%clk 0:00:31.2]} 23. Rf3 {[%clk 0:01:07.3]} 23... Bh6
{[%clk 0:00:23]} 24. Qd3 {[%clk 0:00:59.5]} 24... Rc8 {[%clk 0:00:19.3]} 25.
Rcf1 {[%clk 0:00:47.7]} 25... f5 {[%clk 0:00:18.4]} 26. a4 {[%clk 0:00:45.2]}
26... Bg7 {[%clk 0:00:13.9]} 27. Ncb5 {[%clk 0:00:44.9]} 27... Bxb5 {[%clk
0:00:11.5]} 28. Nxb5 {[%clk 0:00:32.8]} 28... Rcc2 {[%clk 0:00:11.5]} 29. R3f2
{[%clk 0:00:28]} 29... Rxf2 {[%clk 0:00:10.9]} 30. Rxf2 {[%clk 0:00:27.9]} 30...
Rxf2 {[%clk 0:00:10.7]} 31. Kxf2 {[%clk 0:00:28.1]} 31... Qb2+ {[%clk
0:00:11.4]} 32. Kf3 {[%clk 0:00:10]} 32... Qb4 {[%clk 0:00:11.8]} 33. d6 {[%clk
0:00:08.6]} 33... exd6 {[%clk 0:00:08.8]} 34. Qd5+ {[%clk 0:00:08.8]} 34... Kh8
{[%clk 0:00:06]} 35. Qa8+ {[%clk 0:00:08.7]} 1-0

[Event "Late-Titled-Tuesday-Blitz-December-26-2023"]
[Site "Chess.com"]
[Date "2023.12.26"]
[Round "9"]
[White "mariofs"]
[Black "Rafael_Ventura"]
[Result "1-0"]
[WhiteElo "2216"]
[BlackElo "2359"]
[TimeControl "180+1"]
[EndTime "15:43:35 PST"]
[Termination "mariofs won by checkmate"]

1. d4 {[%clk 0:03:00.9]} 1... Nf6 {[%clk 0:02:59.6]} 2. Bf4 {[%clk 0:02:58.4]}
2... g6 {[%clk 0:02:59.5]} 3. Nc3 {[%clk 0:02:54.7]} 3... d5 {[%clk 0:02:59.9]}
4. e3 {[%clk 0:02:54.2]} 4... Bg7 {[%clk 0:02:59.9]} 5. h4 {[%clk 0:02:54.4]}
5... h6 {[%clk 0:02:59.9]} 6. Nf3 {[%clk 0:02:47]} 6... a6 {[%clk 0:02:59.5]} 7.
Ne5 {[%clk 0:02:46.4]} 7... b5 {[%clk 0:02:58.6]} 8. Be2 {[%clk 0:02:28.6]} 8...
Bb7 {[%clk 0:02:56]} 9. f3 {[%clk 0:02:26.5]} 9... Nbd7 {[%clk 0:02:52.4]} 10.
Qd2 {[%clk 0:02:19]} 10... Rc8 {[%clk 0:02:49.6]} 11. g4 {[%clk 0:02:08.2]}
11... c5 {[%clk 0:02:47.8]} 12. Kf2 {[%clk 0:01:41.3]} 12... cxd4 {[%clk
0:02:45]} 13. exd4 {[%clk 0:01:40.9]} 13... e6 {[%clk 0:02:43.4]} 14. Bd3 {[%clk
0:01:26.5]} 14... Qb6 {[%clk 0:02:42.2]} 15. Bg3 {[%clk 0:01:19.8]} 15... Qxd4+
{[%clk 0:02:40.7]} 16. Kg2 {[%clk 0:01:12.6]} 16... Qb6 {[%clk 0:02:36.6]} 17.
Rae1 {[%clk 0:01:02.3]} 17... O-O {[%clk 0:02:32.6]} 18. g5 {[%clk 0:00:37.7]}
18... Nh5 {[%clk 0:02:30.6]} 19. Nxd7 {[%clk 0:00:36.7]} 19... Qc6 {[%clk
0:02:04.4]} 20. Nxf8 {[%clk 0:00:31.6]} 20... Bxf8 {[%clk 0:02:05.3]} 21. Be5
{[%clk 0:00:23.1]} 21... Bd6 {[%clk 0:02:01]} 22. f4 {[%clk 0:00:18]} 22... Bxe5
{[%clk 0:01:45.8]} 23. fxe5 {[%clk 0:00:13.3]} 23... d4+ {[%clk 0:01:41.5]} 24.
Ne4 {[%clk 0:00:13.1]} 24... Qc7 {[%clk 0:01:37.2]} 25. Kg1 {[%clk 0:00:12.8]}
25... Kh8 {[%clk 0:01:34]} 26. Nf6 {[%clk 0:00:12.3]} 26... Nxf6 {[%clk
0:01:27.5]} 27. gxf6 {[%clk 0:00:10.8]} 27... Kh7 {[%clk 0:01:27]} 28. Rh2
{[%clk 0:00:10.8]} 28... Qc6 {[%clk 0:01:22.3]} 29. Qf2 {[%clk 0:00:10]} 29...
Qc5 {[%clk 0:01:04.7]} 30. h5 {[%clk 0:00:10.4]} 30... Qd5 {[%clk 0:01:01.3]}
31. hxg6+ {[%clk 0:00:10.1]} 31... fxg6 {[%clk 0:01:02.2]} 32. Qf4 {[%clk
0:00:10.2]} 32... h5 {[%clk 0:00:45.4]} 33. Rxh5+ {[%clk 0:00:09.4]} 33... Kg8
{[%clk 0:00:46]} 34. Rh2 {[%clk 0:00:09.5]} 34... Qf3 {[%clk 0:00:42.2]} 35.
Qxf3 {[%clk 0:00:08.6]} 35... Bxf3 {[%clk 0:00:42.1]} 36. Kf2 {[%clk 0:00:09.3]}
36... Bg4 {[%clk 0:00:37.9]} 37. Rg1 {[%clk 0:00:09.2]} 37... Bf5 {[%clk
0:00:38.8]} 38. Bxf5 {[%clk 0:00:09.1]} 38... exf5 {[%clk 0:00:39.7]} 39. Kg3
{[%clk 0:00:09.6]} 39... Kf7 {[%clk 0:00:35.7]} 40. Kf4 {[%clk 0:00:10]} 40...
Rc4 {[%clk 0:00:32.7]} 41. Rh7+ {[%clk 0:00:10.5]} 41... Ke6 {[%clk 0:00:33.2]}
42. Re7+ {[%clk 0:00:10.7]} 42... Kd5 {[%clk 0:00:33.8]} 43. f7 {[%clk
0:00:11.1]} 43... d3+ {[%clk 0:00:34.1]} 44. Kg5 {[%clk 0:00:11.1]} 44... Rg4+
{[%clk 0:00:24.1]} 45. Rxg4 {[%clk 0:00:10.2]} 45... fxg4 {[%clk 0:00:25]} 46.
f8=Q {[%clk 0:00:09.8]} 46... dxc2 {[%clk 0:00:25.3]} 47. Qd8+ {[%clk
0:00:10.1]} 47... Ke4 {[%clk 0:00:25.5]} 48. Rc7 {[%clk 0:00:10.3]} 48... g3
{[%clk 0:00:23.5]} 49. Rxc2 {[%clk 0:00:09.8]} 49... Kf3 {[%clk 0:00:24.4]} 50.
Qd3# {[%clk 0:00:09.1]} 1-0

[Event "Late-Titled-Tuesday-Blitz-December-26-2023"]
[Site "Chess.com"]
[Date "2023.12.26"]
[Round "9"]
[White "SnekkerAndersen"]
[Black "IMRosen"]
[Result "1-0"]
[WhiteElo "2578"]
[BlackElo "2680"]
[TimeControl "180+1"]
[EndTime "15:43:41 PST"]
[Termination "SnekkerAndersen won on time"]

1. a3 {[%clk 0:02:55]} 1... d5 {[%clk 0:02:59.3]} 2. h3 {[%clk 0:02:55.9]} 2...
Bf5 {[%clk 0:02:57.8]} 3. d3 {[%clk 0:02:56.4]} 3... Nc6 {[%clk 0:02:54.7]} 4.
e3 {[%clk 0:02:56.9]} 4... e5 {[%clk 0:02:55]} 5. Nc3 {[%clk 0:02:56.7]} 5...
Bg6 {[%clk 0:02:48.8]} 6. Bd2 {[%clk 0:02:56.4]} 6... Nf6 {[%clk 0:02:43.5]} 7.
Nf3 {[%clk 0:02:55]} 7... a6 {[%clk 0:02:37.8]} 8. Be2 {[%clk 0:02:52.9]} 8...
Bc5 {[%clk 0:02:38]} 9. O-O {[%clk 0:02:48.6]} 9... O-O {[%clk 0:02:37.2]} 10.
Nh4 {[%clk 0:02:48.4]} 10... d4 {[%clk 0:02:35.9]} 11. Na4 {[%clk 0:02:20]}
11... Ba7 {[%clk 0:02:35.8]} 12. Nxg6 {[%clk 0:02:16.5]} 12... hxg6 {[%clk
0:02:35.7]} 13. b4 {[%clk 0:02:14.8]} 13... dxe3 {[%clk 0:02:28.3]} 14. Bxe3
{[%clk 0:02:12.9]} 14... Bxe3 {[%clk 0:02:26.3]} 15. fxe3 {[%clk 0:02:12.9]}
15... Nd5 {[%clk 0:02:26.9]} 16. Qd2 {[%clk 0:02:10.5]} 16... Qg5 {[%clk
0:02:25.4]} 17. Bf3 {[%clk 0:01:59.6]} 17... Qxe3+ {[%clk 0:02:10.3]} 18. Qxe3
{[%clk 0:01:53.1]} 18... Nxe3 {[%clk 0:02:11.2]} 19. Bxc6 {[%clk 0:01:06]} 19...
Nxf1 {[%clk 0:02:02.7]} 20. Bxb7 {[%clk 0:01:06.2]} 20... Ra7 {[%clk 0:02:03.3]}
21. Bc6 {[%clk 0:00:58.8]} 21... Ne3 {[%clk 0:01:54]} 22. c3 {[%clk 0:00:57.5]}
22... Rd8 {[%clk 0:01:47.3]} 23. Nc5 {[%clk 0:00:57.2]} 23... Rd6 {[%clk
0:01:26.9]} 24. Bf3 {[%clk 0:00:46.7]} 24... f5 {[%clk 0:01:15.4]} 25. Re1
{[%clk 0:00:45.1]} 25... f4 {[%clk 0:01:10.8]} 26. a4 {[%clk 0:00:39.1]} 26...
a5 {[%clk 0:01:01.6]} 27. b5 {[%clk 0:00:37.5]} 27... g5 {[%clk 0:00:42.1]} 28.
Be4 {[%clk 0:00:35.6]} 28... Kf7 {[%clk 0:00:40.7]} 29. Kf2 {[%clk 0:00:34.5]}
29... g4 {[%clk 0:00:37.7]} 30. Ke2 {[%clk 0:00:33]} 30... gxh3 {[%clk
0:00:32.8]} 31. gxh3 {[%clk 0:00:33.9]} 31... Rh6 {[%clk 0:00:33]} 32. Rh1
{[%clk 0:00:30.2]} 32... g5 {[%clk 0:00:30.7]} 33. Bf3 {[%clk 0:00:17.8]} 33...
Nf5 {[%clk 0:00:26.4]} 34. Rh2 {[%clk 0:00:15.8]} 34... Ne7 {[%clk 0:00:20.4]}
35. c4 {[%clk 0:00:12]} 35... Rb6 {[%clk 0:00:17.3]} 36. Kd2 {[%clk 0:00:12]}
36... c6 {[%clk 0:00:17.4]} 37. Kc3 {[%clk 0:00:12.3]} 37... cxb5 {[%clk
0:00:17.3]} 38. axb5 {[%clk 0:00:11.5]} 38... a4 {[%clk 0:00:17.9]} 39. Ra2
{[%clk 0:00:10.2]} 39... a3 {[%clk 0:00:16.8]} 40. Kb4 {[%clk 0:00:10.4]} 40...
Rh6 {[%clk 0:00:12.9]} 41. Bg4 {[%clk 0:00:10]} 41... Rb6 {[%clk 0:00:10.6]} 42.
Ne4 {[%clk 0:00:09.1]} 42... Nc6+ {[%clk 0:00:10]} 43. Kc5 {[%clk 0:00:09.1]}
1-0